Cogmind - Beta 17 --- EXPLORER MODE // 2026.08.16 @ 18:46:58 Player: arsenier Result: Destroyed by GS-9LO(R) with Subdweller Machine Gun Performance ------------- Evolutions (0) 0 Regions Visited (3) 600 Robots Destroyed (14) 70 Value Destroyed (250) 250 Prototype IDs (0) 0 Alien Tech Used (0) 0 Bonus (0) 0 TOTAL SCORE: 920 Bonus ------- None Cogmind --------- Core Integrity 0/250 Matter 280/300 Energy 34/100 System Corruption 1% Temperature Cool (0) Movement Core (300) Ox5 Location -10/Subcaves Parts ------- > --- POWER (1) -------- (None) > --- PROPULSION (2) --- (None) > --- UTILITY (3) ------ Medium Storage Unit Targeting Computer Targeting Computer > --- WEAPON (2) ------- Medium Laser Subdweller Laser > --- INVENTORY (10) --- Light Ion Engine Scrap Suit Disposable Heat Sink Seismic Detector Light Assault Rifle Peak State ------------ > --- POWER ------------ Light Nuclear Core > --- PROPULSION ------- Aluminum Leg Aluminum Leg > --- UTILITY ---------- Medium Storage Unit Targeting Computer Targeting Computer > --- WEAPON ----------- Assault Rifle Light Assault Rifle > --- INVENTORY -------- Ion Engine Light Ion Engine Scrap Suit Seismic Detector Medium Laser Light Assault Rifle [Rating: 11] Favorites ----------- Power Light Nuclear Core Engine Subdweller Power Source Power Core Light Nuclear Core Propulsion Aluminum Leg Leg Aluminum Leg Utility Targeting Computer Device Seismic Detector Storage Medium Storage Unit Processor Targeting Computer Weapon Light Assault Rifle Energy Gun Medium Laser Ballistic Gun Light Assault Rifle Build | -11 -10 -10 -10 ------- Run | Yrd Mat Min Sub Slots Evolved 1 | . 1 . . Power . | . . . . Propulsion . | . . . . Utility 1 | . 1 . . Weapon . | . . . . Parts Attached 17 | 7 2 4 4 Power 4 | 1 1 . 2 Engine 3 | 1 . . 2 Core 1 | . 1 . . Reactor . | . . . . Propulsion 2 | 2 . . . Treads . | . . . . Leg 2 | 2 . . . Wheel . | . . . . Hover . | . . . . Flight . | . . . . Utility 5 | 2 1 2 . Device 2 | . 1 1 . Storage 1 | . . 1 . Processor 2 | 2 . . . Hackware . | . . . . Protection . | . . . . Artifact . | . . . . Weapon 6 | 2 . 2 2 Energy Gun 3 | 1 . . 2 Energy Cannon . | . . . . Ballistic Gun 3 | 1 . 2 . Ballistic Cannon . | . . . . Launcher . | . . . . Special Weapon . | . . . . Impact Weapon . | . . . . Slashing Weapon . | . . . . Piercing Weapon . | . . . . Special Melee Weapon . | . . . . Unidentified Prototypes . | . . . . Parts Lost 6 | . . . 6 Power 1 | . . . 1 Propulsion 2 | . . . 2 Utility . | . . . . Weapon 3 | . . . 3 Highest Loss Streak 4 | . . . 4 To Critical Strikes 1 | . . . 1 Average Backups 5 | 1 4 4 7 Power 1 | . 1 2 1 Propulsion . | . . . . Utility 1 | . 1 1 2 Weapon 1 | . 1 1 2 Tool/Special . | . . . . Unused Backups 3 | . . . 3 Power . | . . . . Propulsion . | . . . . Utility 2 | . . . 2 Weapon 1 | . . . 1 Tool/Special . | . . . . Average Slot Usage (%) 96 | . 94 99 92 Engine 4 | . 4 . 10 Core 7 | . 7 12 1 Leg 22 | . 25 25 18 Device 6 | . 6 10 . Storage 4 | . . . 12 Processor 25 | . 25 25 25 Energy Gun 2 | . 12 1 . Ballistic Gun 22 | . 12 23 24 Peak Build Rating 11 | 7 10 11 11 Average Rating 9 | 4 8 10 9 On Entrance 7 | . 7 10 11 Avg Prop Armor Cover (%) . | . . . . Naked Turns . | . . . . Heaviest Build 18 | 7 10 18 18 Greatest Support 20 | 20 20 20 20 Greatest Overweight (x) 1 | . . . 1 Average Overweight (x) . | . . . . Largest Inventory Capacity 10 | 5 5 10 10 Average Capacity 6 | 5 5 5 10 Most Carried 9 | 4 5 7 9 Average Carried 5 | 1 4 4 8 Final Capacity 10 | 5 5 10 10 Final Carried 7 | 3 5 7 6 Class Distribution -------------------- 100% | Hacker-Mutant Dominant Class ---------------- Hacker-Mutant | -10/Materials Hacker-Mutant | -10/Mines Hacker-Mutant | -10/Subcaves Resources | -11 -10 -10 -10 ----------- Run | Yrd Mat Min Sub Matter Collected 494 | 255 28 94 117 Remotely . | . . . . Salvage Created 300 | . . 119 181 Parts 22 | . . 13 9 Haulers Intercepted . | . . . . Recyclers Shooed . | . . . . Parts Field Recycled . | . . . . Retrieved Matter . | . . . . Parts Self-Destructed . | . . . . Prevented . | . . . . Parts Restored . | . . . . Kills | -11 -10 -10 -10 ------- Run | Yrd Mat Min Sub Combat Hostiles Destroyed 12 | . . 8 4 Guns 12 | . . 8 4 Classes Destroyed 3 | . . 1 2 Turret 2 | . . . 2 Swarmer 10 | . . 8 2 Subdweller 2 | . . . 2 Best Kill Streak 4 | . . 2 4 Combat Bots Only 2 | . . 2 2 Max Kills in Single Turn 1 | . . 1 1 Gunslinging . | . . . . Exploded . | . . . . Melee . | . . . . Uniques/NPCs Destroyed . | . . . . Combat | -11 -10 -10 -10 -------- Run | Yrd Mat Min Sub Hostile Shots Fired 203 | . . 22 181 Missed 60 | . . 5 55 Hits 143 | . . 17 126 Projectile 143 | . . 17 126 Critical Strikes 1 | . . . 1 Damage Taken 960 | . . 78 882 Core 257 | . . . 257 Absorbed by Shields . | . . . . Ignored by Resistances 624 | . . 58 566 Core Remaining (%) 100 | 100 . . . Volleys Fired 54 | . 1 13 40 Largest 2 | . 2 2 2 Hottest 110 | . 70 70 110 Shots Fired 98 | . 2 26 70 Gun 98 | . 2 26 70 Cannon . | . . . . Launcher . | . . . . Special . | . . . . Kinetic 91 | . 1 24 66 Thermal 7 | . 1 2 4 Explosive . | . . . . Electromagnetic . | . . . . Robot Hit Streak 35 | . 1 5 35 Robot Miss Streak 2 | . 1 2 1 Penetration Max . | . . . . Secondary Targets . | . . . . Shots Hit Robots 81 | . 1 15 65 Core Hits 28 | . . 9 19 Critical Kills . | . . . . Critical Parts Destroyed . | . . . . Critical Strikes 1 | . . . 1 Destroy 1 | . . . 1 Melee Attacks . | . . . . Impact . | . . . . Slashing . | . . . . Piercing . | . . . . Sneak Attacks . | . . . . Combat Hostiles . | . . . . Follow-up Attacks . | . . . . Damage Inflicted 642 | . 13 149 480 Guns 642 | . 13 149 480 Cannons . | . . . . Explosions . | . . . . Melee . | . . . . Ramming . | . . . . Kinetic 562 | . 13 136 413 Thermal 80 | . . 13 67 Explosive . | . . . . Electromagnetic . | . . . . Impact . | . . . . Slashing . | . . . . Piercing . | . . . . Highest Corruption 1 | . 1 1 1 Average Corruption 1 | . 1 1 1 Corruption Purged . | . . . . Corruption Blocked . | . . . . Effects 13 | . . 8 5 Message Errors 3 | . . 1 2 Matter Fused 2 | . . 1 1 Heat Flow Errors 3 | . . 2 1 Energy Discharges 3 | . . 2 1 Data Loss (minor) 1 | . . 1 . Alerts 1 | . . 1 . Overload Shots . | . . . . Overflow Damage . | . . . . Projectiles . | . . . . Explosions . | . . . . Melee . | . . . . Knockbacks . | . . . . Impact . | . . . . Kinetic . | . . . . Secondary . | . . . . Self-Inflicted Damage . | . . . . Shots . | . . . . Rammed . | . . . . Targets Rammed . | . . . . Kicked . | . . . . Crushed . | . . . . Highest Temperature 241 | . 9 186 241 Average Temperature 50 | . 6 43 123 Received Heat Transfer 360 | . . . 360 Siege Activations . | . . . . Martial Activations . | . . . . Shielding Activations . | . . . . Robots Disrupted . | . . . . Combat Hostiles . | . . . . Robots Corrupted . | . . . . Combat Hostiles . | . . . . Parts Fried . | . . . . Impact Corruptions . | . . . . Robots Melted . | . . . . Combat Hostiles . | . . . . Parts Melted . | . . . . Heat Transferred 161 | . . 37 124 Parts Sabotaged . | . . . . Parts Stolen . | . . . . Parts Stripped . | . . . . Power Chain Reactions . | . . . . Alert | -11 -10 -10 -10 ------- Run | Yrd Mat Min Sub Maximum Alert Level . | . . . . Low Security (%) 100 | 100 100 100 . Level 1 . | . . . . Level 2 . | . . . . Level 3 . | . . . . Level 4 . | . . . . Level 5 . | . . . . High Security . | . . . . Max Security . | . . . . Peak Influence 55 | . 3 55 . Initial . | . . . . Average 7 | . . 10 . Influence Increases 302 | . 3 204 95 Destroy 0b10 Robot/C 240 | . . 160 80 Destroy Leader 40 | . . 40 . Successful Hack 3 | . 3 . . Disable Machine 4 | . . 4 . Lose Combat Pursuer 15 | . . . 15 Influence Decreases 302 | . 3 204 95 Time Decay 292 | . 3 204 85 Lost Part 10 | . . . 10 Squads Dispatched . | . . . . Investigation . | . . . . Extermination . | . . . . Reinforcement . | . . . . Assault . | . . . . Garrison . | . . . . Intercept . | . . . . Searches Triggered . | . . . . Construction Impeded . | . . . . Haulers Reinforced . | . . . . Active Scanning Responses . | . . . . Cargo Convoy Interrupts . | . . . . Stealth | -11 -10 -10 -10 --------- Run | Yrd Mat Min Sub Distress Signals 2 | . 2 . . Communications Jammed . | . . . . Distress Signals . | . . . . Times Spotted 25 | . 5 8 12 Peak Tracking Total 6 | . 5 2 6 Tactical Retreats 1 | . . . 1 Traps | -11 -10 -10 -10 ------- Run | Yrd Mat Min Sub Traps Triggered 2 | . 2 . . Indirectly . | . . . . Trap Hack Attempts . | . . . . Triggered . | . . . . Disarmed 1 | . 1 . . Reprogrammed . | . . . . Reused . | . . . . Traps Extracted . | . . . . Installed . | . . . . Triggered . | . . . . Machines | -11 -10 -10 -10 ---------- Run | Yrd Mat Min Sub Machines Disabled 1 | . . 1 . Max in Single Turn 1 | . . 1 . Machines Repaired . | . . . . Machines Dismantled . | . . . . Machines Sabotaged . | . . . . Overloaded Fab Kills . | . . . . Hacking | -11 -10 -10 -10 --------- Run | Yrd Mat Min Sub Machines Accessed 4 | . 4 . . Terminals 3 | . 3 . . Fabricators . | . . . . Repair Stations . | . . . . Recycling Units 1 | . 1 . . Scanalyzers . | . . . . Garrison Access . | . . . . Total Hacks 11 | . 11 . . Successful 10 | . 10 . . Failed 1 | . 1 . . Catastrophic . | . . . . Database Lockouts . | . . . . Manual . | . . . . Terminals 9 | . 9 . . Fabricators . | . . . . Repair Stations . | . . . . Recycling Units 2 | . 2 . . Scanalyzers . | . . . . Garrison Access . | . . . . Terminal Hacks 8 | . 8 . . Record 1 | . 1 . . Alert Level 1 | . 1 . . Locate Traps 1 | . 1 . . Disarm Traps 1 | . 1 . . Security Status 1 | . 1 . . Hauler Manifests 1 | . 1 . . Registered Components 1 | . 1 . . Zone Layout 1 | . 1 . . Fabricator Hacks . | . . . . Repair Station Hacks . | . . . . Recycling Unit Hacks 2 | . 2 . . Report Inventory 1 | . 1 . . Retrieve Components 1 | . 1 . . Scanalyzer . | . . . . Garrison Access Hacks . | . . . . Unauthorized Hacks . | . . . . Terminals . | . . . . Fabricators . | . . . . Repair Stations . | . . . . Recycling Units . | . . . . Scanalyzers . | . . . . Garrison Access . | . . . . Data Cores Recovered . | . . . . Used . | . . . . Hacking Detections 3 | . 3 . . Full Trace Events 1 | . 1 . . Feedback Events . | . . . . Feedback Blocked . | . . . . Robot Schematics Acquired . | . . . . Robots Built . | . . . . Authchips . | . . . . Time . | . . . . Total Robot Build Rating . | . . . . Part Schematics Acquired . | . . . . Parts Built . | . . . . Authchips . | . . . . Time . | . . . . Total Part Build Rating . | . . . . Part Studies Acquired . | . . . . Parts Repaired . | . . . . Time . | . . . . Parts Recycled . | . . . . Recycled Matter . | . . . . Retrieved Matter . | . . . . Retrieved Components 3 | . 3 . . Parts Scanalyzed . | . . . . Part Schematics Acquired . | . . . . Parts Damaged . | . . . . Bothacking | -11 -10 -10 -10 ------------ Run | Yrd Mat Min Sub Used RIF Installer . | . . . . Robots Hacked . | . . . . Non-combat . | . . . . Combat . | . . . . Robot Hacks Applied . | . . . . Relay Couplers Released . | . . . . Fabnet Peak Effective % . | . . . . Robots Rewired . | . . . . Allies Hacked . | . . . . Hacks Repelled . | . . . . Allies | -11 -10 -10 -10 -------- Run | Yrd Mat Min Sub Total Allies . | . . . . Largest Group . | . . . . Highest-Rated Group . | . . . . Highest-Rated Ally . | . . . . Total Orders . | . . . . Ally Attacks . | . . . . Total Damage . | . . . . Kills . | . . . . Allies Corrupted . | . . . . Allies Melted . | . . . . Intel | -11 -10 -10 -10 ------- Run | Yrd Mat Min Sub Active Infowar (turns) 627 | . . 627 . Seismic 627 | . . 627 . Robot Analysis Total . | . . . . Derelict Logs Recovered 1 | . . 1 . Drone Launches . | . . . . Drone Recoveries . | . . . . Exploration | -11 -10 -10 -10 ------------- Run | Yrd Mat Min Sub Turns Passed 1435 | 77 178 685 495 Spaces Moved 974 | 65 142 510 257 Core 26 | 26 . . . Treads . | . . . . Legs 948 | 39 142 510 257 Wheels . | . . . . Hover . | . . . . Flight . | . . . . Fastest Speed 50 | 50 120 120 120 Average Speed 124 | 92 120 120 145 Slowest Speed 190 | 120 120 120 190 Overloaded Moves . | . . . . Propulsion Burnouts . | . . . . Robots Hopped . | . . . . Potential Cave-ins . | . . . . Cave-ins Triggered . | . . . . Exploration Rate (%) 38 | 3 32 99 18 Regions Visited 3 Branch Regions 2 Pre-discovered Areas . | . . . . Known Exits Taken 3 | 1 1 1 . Unknown Exits Taken . | . . . . Scrap Searched 1 | . . 1 . Spaces Dug . | . . . . Terrain Destroyed . | . . . . Melee . | . . . . Projectile . | . . . . AOE . | . . . . Terrain Rammed . | . . . . Walls Destroyed . | . . . . Machines Disabled . | . . . . Actions | -11 -10 -10 -10 --------- Run | Yrd Mat Min Sub Total 1109 | 82 147 559 321 Wait 40 | 1 . 27 12 Move 971 | 64 141 509 257 Hop . | . . . . Pick Up 17 | 10 2 2 3 Fast Attach 4 | . 1 2 1 Attach 12 | 7 1 . 4 Detach 3 | . 1 . 2 Swap 2 | . . 2 . Drop 6 | . . 4 2 Fire 54 | . 1 13 40 Melee . | . . . . Ram . | . . . . Kick . | . . . . Crush . | . . . . Escape Stasis . | . . . . Rewire . | . . . . Trap . | . . . . Miscellaneous . | . . . . Route ------- -11/Scrapyard -10/Materials -10/Mines (discovered 3 exits: *Mat x2 / *Sub) -10/Subcaves (discovered 1 exit: *Rec) History --------- Turn | Location | Event 10 | -11/Scrapyard | Identified exit to Materials 10 | -11/Scrapyard | Discovered exit to Materials (range 16) 78 | -11/Scrapyard | Entered Materials 78 | -10/Materials | Evolved 1 slot: Utility x1 79 | -10/Materials | Met a group of wandering Federalists 230 | -10/Materials | Identified exit to Mines 230 | -10/Materials | Discovered exit to Mines (range 16) 256 | -10/Materials | Entered Mines 340 | -10/Mines | Build established: Hacker-Mutant 537 | -10/Mines | Learned Materials terminal intel 648 | -10/Mines | Identified exit to Materials 648 | -10/Mines | Discovered exit to Materials (range 11) 671 | -10/Mines | Discovered exit to Materials (range 9) 895 | -10/Mines | Found a Scrap Suit stashed away for nefarious purposes 899 | -10/Mines | Found Scrap Suit 930 | -10/Mines | Identified exit to Subcaves 930 | -10/Mines | Discovered exit to Subcaves (range 10) 941 | -10/Mines | Entered Subcaves 1171 | -10/Subcaves | Identified exit to Recycling 1171 | -10/Subcaves | Discovered exit to Recycling (range 9) 1389 | -10/Subcaves | Core integrity fell below 50% 1426 | -10/Subcaves | Core integrity fell below 20% 1436 | -10/Subcaves | Destroyed by GS-9LO(R) with Subdweller Machine Gun Last Messages --------------- 01183_ Acquired 2 matter. 01183_ Autobeam Turret destroyed. 01188_ Aluminum Leg destroyed. 01196_ Sub. Power Source shoots sparks and powers down. 01200_ System corrupted: Matter fused (-6). 01202_ S-10 Pest destroyed. 01208_ Dropped Broken Sub. Power Source. 01209_ Acquired 34 matter. 01223_ PVYDW08UICR|NOQL